bitfinex-derivatives/quotes_BTCF0:USTF0_20250424
["timestamp","ask_amount","ask_price","bid_price","bid_amount"]
[1745521388024,0.40042,93546.0,93545.0,0.64029872]
[1745521388823,0.40042,93546.0,93545.0,0.30099872]
[1745521389224,0.40042,93546.0,93545.0,0.40786492]
[1745521389428,0.3311,93546.0,93545.0,0.40786492]
[1745521389630,0.40042,93546.0,93545.0,0.40786492]
[1745521390028,0.3311,93546.0,93545.0,0.40786492]
[1745521390327,0.40042,93546.0,93545.0,0.92256492]
[1745521402036,0.40042,93546.0,93545.0,0.6215662]
[1745521404434,0.48409021,93546.0,93545.0,0.6215662]
[1745521405331,0.48409021,93546.0,93545.0,0.4552662]
[1745521407340,0.48409021,93546.0,93545.0,0.3484]
[1745521407540,0.48309021,93546.0,93545.0,0.3484]
[1745521407741,0.48309021,93546.0,93545.0,0.3494]
[1745521407940,0.48309021,93546.0,93545.0,0.3504]
[1745521408140,0.39942,93546.0,93545.0,0.3504]
[1745521409744,0.39942,93546.0,93545.0,0.002]
[1745521409933,0.39942,93546.0,93545.0,0.001]
[1745521410139,0.39942,93546.0,93545.0,0.002]
[1745521410433,0.39942,93546.0,93545.0,0.1088662]
[1745521410639,0.39942,93546.0,93545.0,0.002]
[1745521411031,0.39942,93546.0,93543.0,0.1068674]
[1745521411236,0.39942,93546.0,93542.0,0.3608]
[1745521411237,0.1655,93545.0,93544.0,0.1068673]
[1745521411638,0.4951,93545.0,93544.0,0.1068673]
[1745521413042,0.4951,93545.0,93544.0,0.1088673]
[1745521413740,0.4951,93545.0,93544.0,0.1108673]
[1745521414247,0.4951,93545.0,93544.0,0.09749291]
[1745521414545,0.4951,93545.0,93544.0,0.09549291]
[1745521414745,0.4951,93545.0,93544.0,0.09749291]
[1745521417150,0.4951,93545.0,93544.0,0.004]
[1745521418246,0.4951,93545.0,93544.0,0.002]
[1745521418440,0.4951,93545.0,93544.0,0.1088673]
[1745521418638,0.4951,93545.0,93544.0,0.004]
[1745521419750,0.4951,93545.0,93544.0,0.002]
[1745521420046,0.4951,93545.0,93544.0,0.004]
[1745521420457,0.39888,93545.0,93544.0,0.1098673]
[1745521421264,0.39888,93545.0,93544.0,0.6157673]
[1745521422454,0.39888,93545.0,93544.0,0.4465673]
[1745521423064,0.39888,93545.0,93544.0,0.1647]
[1745521423251,0.39888,93545.0,93544.0,0.1088673]
[1745521424263,0.39888,93545.0,93544.0,0.09549287]
[1745521424462,0.39888,93545.0,93543.0,0.1068684]
[1745521424768,0.1617,93544.0,93543.0,0.1068684]
[1745521425265,0.5046,93544.0,93543.0,0.1068684]
[1745521425565,0.5046,93544.0,93543.0,0.1078684]
[1745521425766,0.5046,93544.0,93543.0,0.2696684]
[1745521426066,0.5046,93544.0,93543.0,0.2706684]
[1745521426765,0.5046,93544.0,93543.0,0.2716684]
[1745521427166,0.5046,93544.0,93543.0,0.2706684]
[1745521427367,0.5046,93544.0,93543.0,0.2716684]
[1745521429067,0.5046,93544.0,93543.0,0.1648]
[1745521429259,0.5046,93544.0,93543.0,0.1098684]
[1745521430154,0.5046,93544.0,93543.0,0.003]
[1745521430359,0.5046,93544.0,93543.0,0.1098684]
[1745521430962,0.5046,93544.0,93543.0,0.2727684]
[1745521431465,0.35252803,93554.0,93544.0,0.1068673]
[1745521431763,0.0692,93553.0,93544.0,0.1068673]
[1745521431962,0.0692,93553.0,93545.0,0.3249]
[1745521433057,0.0692,93553.0,93545.0,0.4317652]
[1745521433464,0.0702,93553.0,93545.0,0.4317652]
[1745521433765,0.0702,93553.0,93545.0,0.3249]
[1745521434064,0.0702,93553.0,93545.0,0.4317659]
[1745521434563,0.0702,93553.0,93546.0,0.1068648]
[1745521434769,0.5111,93552.0,93545.0,0.3249]
[1745521435471,0.5111,93552.0,93545.0,0.4317653]
[1745521435769,0.5111,93552.0,93545.0,0.5939653]
[1745521435970,0.5121,93552.0,93545.0,0.5939653]
[1745521437358,0.5131,93552.0,93545.0,0.540533]
[1745521437567,0.5131,93552.0,93546.0,0.1068644]
[1745521437765,0.5131,93552.0,93545.0,0.4871]
[1745521438265,0.5131,93552.0,93545.0,0.5939658]
[1745521438865,0.5131,93552.0,93545.0,0.4871]
[1745521439168,0.5131,93552.0,93545.0,0.5939661]
[1745521439567,0.5131,93552.0,93545.0,0.3249]
[1745521440159,0.5121,93552.0,93543.0,0.1068679]
[1745521440363,0.5131,93552.0,93545.0,0.1068652]
[1745521440568,0.5131,93552.0,93544.0,0.1684]
[1745521440759,0.5131,93552.0,93546.0,0.1068647]
[1745521441566,0.5131,93552.0,93547.0,0.1684]
[1745521441965,0.5121,93552.0,93547.0,0.1684]
[1745521442165,0.5131,93552.0,93547.0,0.1684]
[1745521443976,0.08368393,93551.0,93547.0,0.1684]
[1745521444668,0.08368393,93551.0,93548.0,0.1732]
[1745521445074,0.08368393,93551.0,93549.0,0.1586]
[1745521445272,0.08468393,93551.0,93549.0,0.1586]
[1745521445676,0.08368393,93551.0,93549.0,0.1586]
[1745521445863,0.08468393,93551.0,93549.0,0.1586]
[1745521446176,0.08368393,93551.0,93549.0,0.1586]
[1745521446381,0.08468393,93551.0,93549.0,0.1586]
[1745521447776,0.08468393,93551.0,93550.0,0.167]
[1745521448176,0.001,93551.0,93520.0,0.11076065]
[1745521448373,0.001,93551.0,93545.0,0.1638]
[1745521450165,0.001,93551.0,93546.0,0.1649]
[1745521450979,0.001,93551.0,93541.0,0.3608]
[1745521451276,0.001,93551.0,93543.0,0.1739]
[1745521451669,0.2435,93552.0,93544.0,0.1649]
[1745521451978,0.001,93551.0,93550.0,0.3608]
[1745521453382,0.2435,93552.0,93550.0,0.3608]
[1745521453581,0.001,93551.0,93550.0,0.3608]
[1745521454776,0.08468393,93551.0,93550.0,0.3608]
[1745521454978,0.08368393,93551.0,93550.0,0.3608]
[1745521455686,0.08468393,93551.0,93550.0,0.3608]
[1745521456877,0.19157993,93551.0,93550.0,0.3608]
[1745521457284,0.44157993,93551.0,93517.0,0.3608]
[1745521457476,0.11076065,93530.0,93520.0,0.168]
[1745521457678,0.2354,93529.0,93520.0,0.168]
[1745521457882,0.3997,93529.0,93521.0,0.159]
[1745521458082,0.3997,93529.0,93522.0,0.3608]
[1745521458289,0.5717,93529.0,93522.0,0.3608]
[1745521458680,0.5717,93529.0,93523.0,0.1711]
[1745521459285,0.5727,93529.0,93523.0,0.1711]
[1745521459683,0.5717,93529.0,93523.0,0.1711]
[1745521459886,0.5727,93529.0,93523.0,0.1761]
[1745521460288,0.5727,93529.0,93523.0,0.1811]
[1745521462082,0.08368393,93528.0,93523.0,0.1811]
[1745521462887,0.1618,93527.0,93524.0,0.1754]
[1745521463280,0.49,93526.0,93525.0,0.1681]
[1745521463586,0.6555,93526.0,93525.0,0.1681]
[1745521463784,0.1655,93526.0,93525.0,0.1681]
[1745521464184,0.3375,93526.0,93525.0,0.1681]
[1745521464383,0.3375,93526.0,93524.0,0.006]
[1745521464384,0.8275,93526.0,93524.0,0.006]
[1745521464785,0.8275,93526.0,93525.0,0.1611]
[1745521465179,0.84966534,93526.0,93525.0,0.1671]
[1745521465689,1.62188934,93526.0,93525.0,0.011]
[1745521465885,1.98168934,93526.0,93525.0,0.005]
[1745521466080,1.98268934,93526.0,93525.0,0.005]
[1745521466490,1.98268934,93526.0,93513.0,0.1611]
[1745521466491,1.98168934,93526.0,93513.0,0.1611]
[1745521466791,1.62876534,93526.0,93525.0,0.005]
[1745521467280,1.73568934,93526.0,93525.0,0.005]
[1745521467686,1.73568934,93526.0,93512.0,0.1607]
[1745521467883,1.62876534,93526.0,93512.0,0.1607]
[1745521468082,0.3608,93516.0,93500.0,0.47156065]
[1745521468291,0.3354,93515.0,93500.0,0.47156065]
[1745521468587,0.06916,93514.0,93500.0,0.47156065]
[1745521468988,0.1651,93513.0,93512.0,0.001]
[1745521469188,0.1651,93513.0,93500.0,0.47156065]
[1745521470189,0.3371,93513.0,93500.0,0.47156065]
[1745521470385,0.3371,93513.0,93500.0,0.3608]
[1745521470582,0.3371,93513.0,93500.0,0.47156065]
[1745521471186,0.3411,93513.0,93501.0,0.4955]
[1745521471588,0.3411,93513.0,93501.0,0.48645]
[1745521471783,0.3411,93513.0,93501.0,0.43333]
[1745521472092,0.3411,93513.0,93501.0,0.3281]
[1745521472392,0.3411,93513.0,93501.0,0.23214]
[1745521472987,0.3411,93513.0,93501.0,0.17862025]
[1745521473193,0.49,93512.0,93501.0,0.1251005]
[1745521473383,0.3608,93504.0,93490.0,0.47156065]
[1745521473583,0.3336,93503.0,93490.0,0.47156065]
[1745521474096,0.5056,93503.0,93489.0,0.3608]
[1745521475086,0.5066,93503.0,93489.0,0.3608]
[1745521475689,0.5066,93503.0,93495.0,0.00734785]
[1745521476184,0.5066,93503.0,93501.0,0.3608]
[1745521476689,0.106948,93502.0,93501.0,0.30727251]
[1745521476895,0.106948,93502.0,93501.0,0.25374502]
[1745521477093,0.435452,93502.0,93496.0,0.1672]
[1745521477397,0.49,93501.0,93496.0,0.1672]
[1745521477585,0.6594,93501.0,93496.0,0.1672]
[1745521477992,0.8159,93501.0,93496.0,0.1672]
[1745521478297,0.00692358,93500.0,93496.0,0.1672]
[1745521478496,0.00692358,93500.0,93497.0,0.1717]
[1745521478794,0.1694,93499.0,93497.0,0.1717]
[1745521478990,0.1694,93499.0,93498.0,0.1614]
[1745521479192,0.3414,93499.0,93498.0,0.1614]
[1745521479692,0.3414,93499.0,93498.0,0.13512]
[1745521480897,0.3414,93499.0,93498.0,0.13812]
[1745521481600,0.3424,93499.0,93498.0,0.13812]
[1745521482590,0.3424,93499.0,93498.0,0.11428]
[1745521482796,0.3424,93499.0,93498.0,0.08459]
[1745521483702,0.3424,93499.0,93498.0,0.03106]
[1745521484090,0.3424,93499.0,93497.0,0.1717]
[1745521484289,0.1572,93498.0,93497.0,0.12620222]
[1745521484498,0.1572,93498.0,93497.0,0.07267222]
[1745521484694,0.3193,93498.0,93497.0,0.07267222]
[1745521484895,0.3193,93498.0,93497.0,0.04084223]
[1745521485093,0.4913,93498.0,93497.0,0.03183]
[1745521485294,0.4913,93498.0,93497.0,0.00836]
[1745521486095,0.4923,93498.0,93497.0,0.00216914]
[1745521486893,0.4923,93498.0,93491.0,0.1644]
[1745521487093,0.4923,93498.0,93497.0,0.003]
[1745521487493,0.4923,93498.0,93491.0,0.1565971]
[1745521487893,0.4923,93498.0,93480.0,0.16902783]
[1745521488096,0.4923,93498.0,93491.0,0.002]
[1745521488400,0.4913,93498.0,93489.0,0.35594482]
[1745521488592,0.8531,93498.0,93481.0,0.3608]
[1745521489197,0.6811,93498.0,93481.0,0.3608]
[1745521489597,0.16902783,93491.0,93481.0,0.31967]
[1745521489803,0.5042,93490.0,93481.0,0.31967]
[1745521490301,0.3608,93488.0,93481.0,0.21438983]
[1745521490499,0.3344,93487.0,93476.0,0.00106979]
[1745521490891,0.3608,93480.0,93476.0,1e-08]
[1745521491095,0.5042,93479.0,93472.0,0.3608]
[1745521491291,0.5042,93479.0,93464.0,0.1587]
[1745521491696,0.49,93478.0,93476.0,0.003]
[1745521492096,0.3337,93477.0,93476.0,0.003]
[1745521492404,0.3416579,93477.0,93476.0,0.003]
[1745521492606,0.3416579,93477.0,93474.0,0.161]
[1745521492805,0.8316579,93477.0,93474.0,0.161]
[1745521493104,1.0036579,93477.0,93475.0,0.1644]
[1745521494401,1.0056579,93477.0,93475.0,0.1694]
[1745521498108,0.8336579,93477.0,93475.0,0.1694]
[1745521500610,0.8336579,93477.0,93475.0,0.005]
[1745521501197,1.0056579,93477.0,93475.0,0.005]
[1745521502296,1.0036579,93477.0,93473.0,0.3608]
[1745521502502,1.0056579,93477.0,93475.0,0.002]
[1745521503212,1.0056579,93477.0,93473.0,0.3608]
[1745521504499,1.0046579,93477.0,93473.0,0.3608]
[1745521504699,1.0056579,93477.0,93473.0,0.3608]
[1745521505298,1.0056579,93477.0,93473.0,0.3628]
[1745521505900,0.06916,93476.0,93473.0,0.3608]
[1745521506105,0.3426579,93477.0,93474.0,0.2939]
[1745521506303,0.1791579,93477.0,93475.0,0.1381]
[1745521506810,0.1791579,93477.0,93476.0,0.1522]
[1745521507205,0.1791579,93477.0,93476.0,0.13881318]
[1745521507406,0.1781579,93477.0,93476.0,0.13881318]
[1745521507906,0.0079579,93477.0,93476.0,0.13881318]
[1745521508111,0.001,93477.0,93476.0,0.44891318]
[1745521508507,0.001,93477.0,93476.0,0.55585818]
[1745521508819,0.06916,93490.0,93477.0,0.1069431]
[1745521509110,0.42346409,93487.0,93486.0,0.3608]
[1745521509413,0.42346409,93487.0,93486.0,0.4677336]
[1745521509608,0.06916,93505.0,93493.0,0.0534626]
[1745521509806,0.06916,93505.0,93500.0,0.3608]
[1745521510006,0.1397,93506.0,93500.0,0.3608]
[1745521510202,0.1397,93506.0,93500.0,0.5328]
[1745521511507,0.004,93501.0,93500.0,0.5328]
[1745521512615,0.01,93501.0,93500.0,0.5338]
[1745521512921,0.01,93501.0,93500.0,0.50810687]
[1745521513414,0.009,93501.0,93500.0,0.33610687]
[1745521513613,0.01700721,93501.0,93500.0,0.33610687]
[1745521514213,0.01600721,93501.0,93500.0,0.33710687]
[1745521514919,0.01600721,93501.0,93500.0,0.26686205]
[1745521515214,0.01100721,93501.0,93500.0,0.26586205]
[1745521515405,0.01600721,93501.0,93500.0,0.26686205]
[1745521515611,0.01600721,93501.0,93500.0,0.21516205]
[1745521517312,0.01300721,93501.0,93500.0,0.21416205]
[1745521517508,0.01600721,93501.0,93500.0,0.21516205]
[1745521517707,0.01600721,93501.0,93500.0,0.20177931]
[1745521520618,0.01600721,93501.0,93500.0,0.30869691]
[1745521521212,0.48446,93525.0,93500.0,0.73073131]
[1745521521419,0.296,93523.0,93520.0,0.3608]
[1745521521618,0.296,93523.0,93521.0,0.1405]
[1745521522117,0.3040855,93523.0,93521.0,0.1365]
[1745521523022,0.3140855,93523.0,93521.0,0.1375]
[1745521523221,0.3140855,93523.0,93522.0,0.1409]
[1745521523619,0.3210855,93523.0,93522.0,0.1409]
[1745521524321,0.3180855,93523.0,93522.0,0.1409]
[1745521524724,0.3140855,93523.0,93522.0,0.1409]
[1745521524927,0.3090855,93523.0,93522.0,0.1419]
[1745521527116,0.39280215,93523.0,93522.0,0.1419]
[1745521527630,0.09680215,93523.0,93522.0,0.1419]
[1745521528122,0.09680215,93523.0,93522.0,0.30052071]
[1745521529331,0.09680215,93523.0,93522.0,0.10283241]
[1745521530930,0.0130855,93523.0,93522.0,0.10283241]
[1745521531933,0.0130855,93523.0,93522.0,0.001]
[1745521533535,0.0130855,93523.0,93520.0,0.3608]
[1745521533838,0.2866,93522.0,93520.0,0.3608]
[1745521534935,0.2896,93522.0,93520.0,0.3618]
[1745521535334,0.2926,93522.0,93520.0,0.3618]
[1745521536233,0.2926,93522.0,93520.0,0.3608]
[1745521536434,0.2936,93522.0,93520.0,0.3618]
[1745521536944,0.2896,93522.0,93520.0,0.3618]
[1745521537132,0.2936,93522.0,93520.0,0.30984001]
[1745521537538,0.2896,93522.0,93520.0,0.30884001]
[1745521537733,0.2936,93522.0,93520.0,0.30984001]
[1745521538035,0.2936,93522.0,93520.0,0.25707001]
[1745521538238,0.2936,93522.0,93507.0,0.147]
[1745521538543,0.3608,93515.0,93497.0,0.06912]
[1745521538837,0.3608,93507.0,93500.0,0.16910002]
[1745521539038,0.2839,93506.0,93500.0,0.16910002]
[1745521539539,0.2839,93506.0,93500.0,0.15571787]
[1745521540546,0.2839,93506.0,93500.0,0.15671787]
[1745521541747,0.2839,93506.0,93500.0,0.15771787]
[1745521543445,0.2859,93506.0,93500.0,0.15571787]
[1745521543644,0.2889,93506.0,93500.0,0.15671787]
[1745521543841,0.2889,93506.0,93500.0,0.001]
[1745521544444,0.2889,93506.0,93501.0,0.1478]
[1745521546739,0.2859,93506.0,93501.0,0.1478]
[1745521548136,0.14,93506.0,93505.0,0.4677119]
[1745521548340,0.002,93506.0,93505.0,0.4677119]
[1745521548944,0.002,93506.0,93505.0,0.6187119]
[1745521549245,0.1487,93512.0,93506.0,0.1069097]
[1745521549437,0.1487,93512.0,93506.0,0.07921909]
[1745521549648,0.1367,93511.0,93507.0,0.1371]
[1745521549841,0.1367,93511.0,93507.0,0.1341]
[1745521550042,0.146,93510.0,93508.0,0.1456]
[1745521550243,0.146,93510.0,93508.0,0.13221948]
[1745521551242,0.1459,93509.0,93508.0,0.13221948]
[1745521553048,0.1459,93509.0,93508.0,0.1396]
[1745521553249,0.286,93509.0,93502.0,0.30950002]
[1745521553547,0.286,93509.0,93496.0,0.3608]
[1745521553548,0.1441,93508.0,93496.0,0.3608]
[1745521554151,0.1424,93507.0,93496.0,0.3608]
[1745521554548,0.1441,93506.0,93496.0,0.3608]
[1745521554759,0.1441,93506.0,93496.0,0.3618]
[1745521555049,0.1424,93505.0,93496.0,0.3618]
[1745521555448,0.1465,93504.0,93496.0,0.3618]
[1745521555953,0.1429,93503.0,93496.0,0.3618]
[1745521556340,0.1465,93502.0,93497.0,0.1408]
[1745521556753,0.1429,93501.0,93497.0,0.1408]
[1745521557155,0.1465,93500.0,93497.0,0.1408]
[1745521557558,0.1429,93499.0,93497.0,0.1418]
[1745521558357,0.1316,93498.0,93497.0,0.1418]
[1745521558950,0.1316,93498.0,93497.0,0.1408]
[1745521559560,0.1336,93498.0,93497.0,0.1408]
[1745521559758,0.2733,93498.0,93497.0,0.1408]
[1745521559962,0.2743,93498.0,93496.0,0.3608]
[1745521560259,0.1406,93497.0,93496.0,0.3608]
[1745521560746,0.2722,93497.0,93496.0,0.3608]
[1745521562055,0.2732,93497.0,93496.0,0.3608]
[1745521562854,0.2752,93497.0,93496.0,0.3608]
[1745521563658,0.2732,93497.0,93496.0,0.3608]
[1745521563853,0.2752,93497.0,93496.0,0.3608]
[1745521565058,0.2752,93497.0,93494.0,0.1253]
[1745521566056,0.2742,93497.0,93494.0,0.1253]
[1745521567049,0.2732,93497.0,93494.0,0.1253]
[1745521567250,0.35388013,93520.0,93496.0,0.3608]
[1745521567560,0.2609,93519.0,93510.0,0.16910002]
[1745521567765,0.3994,93519.0,93511.0,0.2665]
[1745521568867,0.08372281,93512.0,93511.0,0.2665]
[1745521569263,0.08372281,93512.0,93511.0,0.25311935]
[1745521569560,0.08372281,93512.0,93508.0,0.3608]
[1745521569753,0.2664,93511.0,93507.0,0.172]
[1745521570161,0.4384,93511.0,93503.0,0.137]
[1745521570764,0.4404,93511.0,93503.0,0.137]
[1745521571963,0.4414,93511.0,93503.0,0.137]
[1745521572166,0.2694,93511.0,93503.0,0.137]
[1745521572362,0.2674,93511.0,93503.0,0.137]
[1745521572564,0.2674,93511.0,93500.0,0.1346]
[1745521572565,0.2694,93511.0,93500.0,0.1346]
[1745521572775,0.2694,93511.0,93499.0,0.06908]
[1745521573065,0.08372281,93510.0,93499.0,0.06908]
[1745521573455,0.2627,93509.0,93497.0,0.2678]
[1745521573861,0.1386,93508.0,93497.0,0.2678]
[1745521574262,0.2672,93507.0,93497.0,0.1332]
[1745521574464,0.2672,93507.0,93490.0,0.16910002]
[1745521574665,0.628,93507.0,93491.0,0.1324]
[1745521575266,0.8,93507.0,93491.0,0.1324]
[1745521575765,0.801,93507.0,93491.0,0.1324]
[1745521576164,0.802,93507.0,93491.0,0.1324]
[1745521577466,0.802,93507.0,93490.0,0.16910002]
[1745521579475,0.802,93507.0,93496.0,0.34741705]
[1745521583270,0.802,93507.0,93496.0,0.32172173]
[1745521583775,0.08372281,93506.0,93496.0,0.32172173]
[1745521584168,0.2652,93505.0,93496.0,0.32172173]
[1745521584362,0.2652,93505.0,93496.0,0.30415665]
[1745521584770,0.3608,93499.0,93477.0,0.30837]
[1745521585070,0.3608,93499.0,93476.0,0.00106979]
[1745521585071,0.3608,93480.0,93476.0,0.00106979]
[1745521585273,0.3608,93477.0,93476.0,1e-08]
[1745521585673,0.1776,93501.0,93471.0,0.7216]
[1745521585972,0.49,93496.0,93483.0,0.3608]
[1745521586474,0.106964,93495.0,93483.0,0.33212]
[1745521586669,0.106964,93495.0,93483.0,0.26602026]
[1745521586864,0.106964,93494.0,93483.0,0.21249052]
[1745521587065,0.106964,93495.0,93483.0,0.16803052]
[1745521587373,0.106964,93495.0,93482.0,0.3608]
[1745521587374,0.06908,93494.0,93482.0,0.3608]
[1745521587878,0.106964,93493.0,93482.0,0.3608]
[1745521588073,0.172,93493.0,93482.0,0.3608]
[1745521588769,0.4166,93492.0,93482.0,0.3608]
[1745521589172,0.5886,93492.0,93482.0,0.3608]
[1745521590375,0.5896,93492.0,93482.0,0.34841279]
[1745521595267,0.06908,93491.0,93482.0,0.34841279]
[1745521595673,0.3006,93490.0,93482.0,0.34841279]
[1745521596176,0.4726,93490.0,93482.0,0.34309227]
[1745521596373,0.4726,93490.0,93482.0,0.23599811]
[1745521596574,0.4726,93490.0,93482.0,0.23499811]
[1745521596775,0.4726,93490.0,93482.0,0.23599811]
[1745521597284,0.4726,93490.0,93485.0,0.3608]
[1745521597475,0.54168,93490.0,93486.0,0.3072]
[1745521597681,0.54168,93490.0,93486.0,0.62814]
[1745521597874,0.54168,93490.0,93487.0,0.32094]
[1745521598075,0.36968,93490.0,93487.0,0.32094]
[1745521598275,0.36968,93490.0,93488.0,0.46554]
[1745521598984,0.08376195,93489.0,93488.0,0.46554]
[1745521599187,0.08376195,93489.0,93488.0,0.1446]
[1745521599379,0.38476195,93489.0,93488.0,0.46554]
[1745521599683,0.38476195,93489.0,93488.0,0.42083001]
[1745521599886,0.38476195,93489.0,93488.0,0.42183001]
[1745521602782,0.301,93489.0,93488.0,0.42183001]
[1745521602978,0.301,93489.0,93488.0,0.40844456]
[1745521604985,0.301,93489.0,93488.0,0.36225315]
[1745521608384,0.301,93489.0,93488.0,0.31687315]
[1745521608891,0.301,93489.0,93488.0,0.29117299]
[1745521611581,0.301,93489.0,93488.0,0.44547299]
[1745521613090,0.301,93489.0,93488.0,0.43208749]
[1745521615393,0.39882072,93489.0,93488.0,0.40582749]
[1745521617294,0.39882072,93489.0,93488.0,0.40582749]
[1745521618295,0.301,93489.0,93488.0,0.76662749]
[1745521620096,0.301,93489.0,93488.0,0.61232749]
[1745521620900,0.301,93489.0,93478.0,0.3608]
[1745521621199,0.473,93489.0,93479.0,0.11815855]
[1745521621391,0.473,93489.0,93479.0,0.09255855]
[1745521621593,0.473,93489.0,93480.0,0.09255855]
[1745521621790,0.473,93489.0,93479.0,0.09255855]
[1745521622194,0.473,93489.0,93480.0,0.09255855]
[1745521622688,0.473,93489.0,93481.0,0.09255855]
[1745521622894,0.473,93489.0,93479.0,0.3327]
[1745521622895,0.473,93489.0,93480.0,0.09255855]
[1745521623389,0.473,93489.0,93481.0,0.09255855]
[1745521623589,0.473,93489.0,93480.0,0.09255855]
[1745521623798,0.473,93489.0,93471.0,0.1548]
[1745521623999,0.3608,93482.0,93467.0,0.1614]
[1745521624196,0.5008,93481.0,93480.0,0.001]
[1745521624701,0.5008,93481.0,93467.0,0.1614]
[1745521625098,0.5008,93481.0,93467.0,0.1634]
[1745521625291,0.5008,93481.0,93468.0,0.1514]
[1745521625496,0.5008,93481.0,93470.0,0.16910002]
[1745521625800,0.1684,93481.0,93480.0,0.3628]
[1745521626098,0.1684,93481.0,93480.0,0.49152984]
[1745521626290,0.1674,93481.0,93480.0,0.48952984]
[1745521626489,0.1684,93481.0,93480.0,0.48952984]
[1745521627001,0.1684,93481.0,93480.0,0.49152984]
[1745521627202,0.1684,93481.0,93480.0,0.31952984]
[1745521628096,0.1684,93481.0,93480.0,0.32152984]
[1745521630904,0.3608,93501.0,93480.0,0.32152984]
[1745521631107,0.533,93499.0,93492.0,0.3608]
[1745521631291,0.533,93499.0,93493.0,0.3272]
[1745521633205,0.536,93499.0,93493.0,0.3282]
[1745521633508,0.536,93499.0,93493.0,0.001]
[1745521633807,0.538,93499.0,93493.0,0.001]
[1745521634106,0.71,93499.0,93493.0,0.001]
[1745521635109,0.71,93499.0,93492.0,0.34841469]
[1745521636112,0.535,93499.0,93492.0,0.34841469]
[1745521636412,0.538,93499.0,93492.0,0.34941469]
[1745521637012,0.536,93499.0,93492.0,0.34941469]
[1745521637206,0.71,93499.0,93492.0,0.34941469]
[1745521637406,0.71,93499.0,93481.0,0.40314274]
[1745521637910,0.71,93499.0,93491.0,0.3608]
[1745521638106,0.538,93499.0,93491.0,0.3531]
[1745521639707,0.535,93499.0,93491.0,0.3531]
[1745521639897,0.538,93499.0,93491.0,0.3541]
[1745521642210,0.536,93499.0,93491.0,0.3541]
[1745521642400,0.538,93499.0,93491.0,0.3541]
[1745521642808,0.538,93499.0,93492.0,0.3535]
[1745521643808,0.535,93499.0,93492.0,0.3535]
[1745521644009,0.539,93499.0,93492.0,0.3535]
[1745521645109,0.1849,93499.0,93492.0,0.3535]
[1745521645613,0.1849,93499.0,93492.0,0.34011602]
[1745521646207,0.1849,93499.0,93492.0,0.51211602]
[1745521647116,0.1849,93499.0,93492.0,0.34011602]
[1745521647319,0.165,93498.0,93492.0,0.34011602]
[1745521647614,0.165,93498.0,93491.0,0.3531]
[1745521647814,0.3392,93497.0,93491.0,0.3531]
[1745521648217,0.165,93496.0,93491.0,0.3531]
[1745521648619,0.1661,93495.0,93491.0,0.3531]
[1745521649222,0.165,93494.0,93492.0,0.001]
[1745521649718,0.1825,93493.0,93491.0,0.3541]
[1745521649916,0.1825,93493.0,93491.0,0.30287704]
[1745521650111,0.165,93492.0,93491.0,0.30287704]
[1745521650314,0.165,93492.0,93491.0,0.30187704]
[1745521650622,0.165,93492.0,93491.0,0.28038704]
[1745521650812,0.165,93492.0,93491.0,0.28138704]
[1745521651421,0.166,93492.0,93491.0,0.28138704]
[1745521652316,0.168,93492.0,93491.0,0.28138704]
[1745521654627,0.168,93492.0,93491.0,0.24244704]
[1745521654829,0.168,93492.0,93491.0,0.18920704]
[1745521655727,0.168,93492.0,93491.0,0.17582241]
[1745521658122,0.25174592,93492.0,93491.0,0.17582241]
[1745521659227,0.25174592,93492.0,93480.0,0.16910002]
[1745521659426,0.1833,93491.0,93480.0,0.16910002]
[1745521660126,0.178,93490.0,93480.0,0.16910002]
[1745521660527,0.1833,93489.0,93480.0,0.17010002]
[1745521661034,0.3582,93488.0,93480.0,0.001]
[1745521661429,0.1833,93487.0,93480.0,0.001]
[1745521661926,0.178,93486.0,93477.0,0.3608]
[1745521662328,0.1808,93485.0,93478.0,0.2112]
[1745521662526,0.1808,93485.0,93480.0,0.001]
[1745521662730,0.1676,93484.0,93480.0,0.001]
[1745521663131,0.1808,93483.0,93480.0,0.001]
[1745521663633,0.1676,93482.0,93480.0,0.001]
[1745521664432,0.1808,93481.0,93480.0,0.001]
[1745521665222,0.1808,93481.0,93478.0,0.2112]
[1745521665429,0.1808,93481.0,93480.0,0.002]
[1745521665629,0.1808,93481.0,93480.0,0.003]
[1745521666032,0.1818,93481.0,93480.0,0.003]
[1745521670027,0.1818,93481.0,93480.0,0.00117558]
[1745521675841,0.6702,93488.0,93480.0,0.00117558]
[1745521677336,0.6722,93488.0,93480.0,0.00117558]
[1745521677837,1.033,93488.0,93478.0,0.1708]
[1745521678033,1.033,93488.0,93471.0,0.47173701]
[1745521678034,0.6722,93488.0,93476.0,0.31493096]
[1745521678240,0.3608,93485.0,93465.0,0.34987379]
[1745521678440,0.11093701,93480.0,93465.0,0.34987379]
[1745521678732,0.1746,93479.0,93465.0,0.34987379]
[1745521678938,0.344,93479.0,93465.0,0.34253379]
[1745521679147,0.516,93479.0,93465.0,0.34253379]
[1745521679439,0.3608,93477.0,93465.0,0.31519379]
[1745521679638,0.3608,93477.0,93465.0,0.31719379]
[1745521679834,0.3608,93477.0,93465.0,0.31819379]
[1745521680430,0.3608,93477.0,93466.0,0.166]
[1745521680628,0.49,93476.0,93466.0,0.166]
[1745521680829,0.49,93476.0,93466.0,0.3411]
[1745521681441,0.49793602,93476.0,93466.0,0.3411]
[1745521682043,0.49793602,93476.0,93466.0,0.3441]
[1745521682440,0.3381,93475.0,93466.0,0.3451]
[1745521683939,0.1731,93474.0,93466.0,0.3421]
[1745521684237,0.1731,93474.0,93466.0,0.3461]